fUST/lending_fUST_20240928
["ID","MTS","AMOUNT","RATE_DAILY","PERIOD"]
[339365725,1727483440555,-11292.65,0.0003989,3]
[339365727,1727483440565,-7842.12,0.0003989,3]
[339365729,1727483440576,-265.60400318,0.00039899,31]
[339365731,1727483440585,-453.72689326,0.000399,2]
[339365733,1727483440597,-154.68999946,0.000399,2]
[339365736,1727483440608,-2062.44765683,0.000399,10]
[339365794,1727483443453,-48195.91809963,0.000399,10]
[339365801,1727483446394,-151.0,0.00039451,14]
[339365802,1727483446403,-151.0,0.0003989,14]
[339365803,1727483446415,-209.78319586,0.000399,10]
[339365804,1727483520047,351.83519,0.00018904,2]
[339365805,1727483520262,351.83519,0.00025119,2]
[339365806,1727483520466,351.83519,0.00031334,2]
[339365807,1727483594214,150.0,0.00021,2]
[339365810,1727483735913,3000.0,0.00029,2]
[339365811,1727483789760,1700.08712576,0.00025204,14]
[339365812,1727483829208,604.73019962,0.00025078,6]
[339365813,1727483829238,755.91274953,0.00026332,8]
[339365814,1727483829272,907.09529943,0.00026583,10]
[339365815,1727483829305,907.09529943,0.00026833,10]
[339365816,1727483829361,455.05645765,0.00027335,10]
[339365817,1727483829419,755.91274953,0.00025329,8]
[339365818,1727483829452,755.91274953,0.0002583,8]
[339365819,1727483829484,755.91274953,0.00026081,8]
[339365820,1727483829521,907.09529943,0.00027084,10]
[339365821,1727483829578,755.91274953,0.0002558,8]
[339365822,1727483842698,2000.0,0.00025204,14]
[339365825,1727484193689,150.0,0.00021,2]
[339365826,1727484218822,307.276279,0.00018904,2]
[339365827,1727484219033,307.276279,0.00025119,2]
[339365829,1727484425147,-300.0,0.00030999,2]
[339365830,1727484425171,-300.0,0.00030999,2]
[339365831,1727484425190,-122.35007534,0.00031,10]
[339365832,1727484426110,-3033.35807491,0.00031,10]
[339365833,1727484429157,-4450.37253275,0.00031,10]
[339365834,1727484429183,-307.276279,0.00031334,2]
[339365835,1727484429204,-161.020426,0.00032881,2]
[339365836,1727484429224,-175.79034,0.00033333,2]
[339365837,1727484429245,-746.90678868,0.000335,25]
[339365838,1727484434129,-461.38759348,0.000335,25]
[339365840,1727484506809,600.0,0.00025,7]
[339365841,1727484545128,-1731.97354659,0.000335,25]
[339365846,1727484554140,-1559.73207125,0.000335,25]
[339365847,1727484554164,-500.0,0.000336,5]
[339365848,1727484554186,-521.59241469,0.00034148,5]
[339365849,1727484554208,-175.020872,0.0003462,2]
[339365850,1727484554231,-175.020872,0.00034878,2]
[339365851,1727484554256,-346.80012796,0.00034999,2]
[339365852,1727484554279,-5000.0,0.00035,30]
[339365853,1727484554300,-175.020872,0.00035136,2]
[339365854,1727484554321,-175.020872,0.00035393,2]
[339365855,1727484554341,-200.0,0.00035616,2]
[339365856,1727484554363,-380.0,0.00035616,2]
[339365857,1727484554384,-175.020872,0.00035651,2]
[339365858,1727484554406,-175.020872,0.00035909,2]
[339365859,1727484554428,-175.020872,0.00036167,2]
[339365860,1727484554449,-175.020872,0.00036424,2]
[339365861,1727484554471,-5000.0,0.000365,40]
[339365887,1727484632491,-150.0,0.00034483,14]
[339365889,1727484632501,-150.0,0.00034483,14]
[339365891,1727484632514,-200.0,0.00034483,14]
[339365893,1727484632523,-307.276279,0.00037549,2]
[339365895,1727484632533,-160.0,0.000378,120]
[339365897,1727484632543,-266.388,0.000378,49]
[339365899,1727484632553,-448.855,0.00037999,7]
[339365901,1727484632564,-500.0,0.00037999,7]
[339365904,1727484632575,-5000.0,0.00038,40]
[339365906,1727484632585,-27386.18956174,0.00038,10]
[339365958,1727484638600,-948.855,0.00038,10]
[339365959,1727484638667,-2273.77684986,0.00038,10]
[339365969,1727484646997,-649.04070738,0.00038,10]
[339365973,1727484982449,282.966946,0.00018904,2]
[339365974,1727484982658,282.966946,0.00025119,2]
[339365976,1727485160382,1798.55595591,0.0002,2]
[339365995,1727485551964,268.401021,0.00018904,2]
[339365996,1727485552179,268.401021,0.00025119,2]
[339365999,1727485626177,-268.401021,0.00031334,2]
[339366000,1727485626202,-203.0561925,0.00034375,2]
[339366001,1727485626231,-7.62709741,0.00034456,2]
[339366002,1727485627172,-157.90384129,0.00034456,2]
[339366003,1727485627195,-136.46231318,0.00034999,2]
[339366004,1727485629114,-363.53768682,0.00034999,2]
[339366005,1727485629138,-500.0,0.00034999,2]
[339366006,1727485629164,-307.3851242,0.00035615,30]
[339366007,1727485629190,-195.0,0.00035616,2]
[339366008,1727485629215,-229.5018802,0.00035616,120]
[339366009,1727485629239,-361.0,0.00035616,2]
[339366010,1727485629262,-4480.81629775,0.0003749,2]
[339366011,1727485629288,-268.401021,0.00037549,2]
[339366012,1727485629313,-1246.25,0.00037999,2]
[339366013,1727485629342,-213.11,0.00037999,50]
[339366014,1727485629367,-500.0,0.00037999,2]
[339366015,1727485629392,-2916.66,0.00037999,2]
[339366016,1727485629416,-36842.24828547,0.00038,10]
[339366017,1727485629440,-1327.22888445,0.00038064,2]
[339366018,1727485629464,-350.39583777,0.00038164,10]
[339366019,1727485629487,-1246.25,0.00038273,2]
[339366020,1727485629511,-320.05273943,0.00038273,2]
[339366021,1727485629537,-2916.66,0.00038273,2]
[339366022,1727485629562,-500.0,0.00038355,2]
[339366023,1727485629586,-1525.99,0.00038356,90]
[339366024,1727485629773,-1525.99,0.00038356,90]
[339366025,1727485629795,-1246.25,0.00038547,120]
[339366026,1727485629818,-2916.66,0.00038547,120]
[339366027,1727485629838,-1525.99,0.00038547,90]
[339366028,1727485629858,-226.86344663,0.00038821,2]
[339366029,1727485629882,-3996.50832176,0.00038821,2]
[339366030,1727485629905,-1246.25,0.00038821,120]
[339366031,1727485629926,-2916.66,0.00038821,120]
[339366032,1727485629948,-1525.99,0.00038821,90]
[339366033,1727485629969,-152.79482225,0.00038904,28]
[339366034,1727485629991,-1246.25,0.00039095,120]
[339366035,1727485630011,-2916.66,0.00039095,120]
[339366036,1727485630032,-1525.99,0.00039095,90]
[339366037,1727485630054,-1246.25,0.00039369,120]
[339366038,1727485630076,-2916.66,0.00039369,120]
[339366039,1727485630098,-1525.99,0.00039369,90]
[339366040,1727485630119,-5000.0,0.000395,60]
[339366041,1727485630142,-500.0,0.00039512,120]
[339366042,1727485630162,-1246.25,0.00039643,120]
[339366043,1727485630184,-1421.16394229,0.00039643,120]
[339366044,1727485640102,-1008.67168093,0.00039643,120]
[339366045,1727485644117,-486.82437678,0.00039643,120]
[339366046,1727485644141,-1154.37047661,0.00039643,90]
[339366058,1727485831795,-150.0,0.00034483,14]
[339366059,1727485831805,-150.0,0.00034483,14]
[339366060,1727485831815,-200.0,0.00034483,14]
[339366061,1727485831825,-882.76,0.00037999,2]
[339366062,1727485831834,-493.8129932,0.00037999,2]
[339366063,1727485831844,-2065.97,0.00037999,2]
[339366065,1727485831853,-486.35311624,0.00038273,2]
[339366075,1727485838361,-396.40688376,0.00038273,2]
[339366076,1727485838370,-2065.97,0.00038273,2]
[339366077,1727485838380,-882.76,0.00038547,120]
[339366078,1727485838389,-2065.97,0.00038547,120]
[339366079,1727485838399,-882.76,0.00038821,120]
[339366080,1727485838408,-2065.97,0.00038821,120]
[339366081,1727485838418,-882.76,0.00039095,120]
[339366082,1727485838428,-1159.14725471,0.00039095,120]
[339366083,1727485838440,-251.7828085,0.00039095,120]
[339366104,1727485845931,-182.74123034,0.00039095,120]
[339366105,1727485859616,163.0,0.00035616,2]
[339366106,1727485889612,152.0,0.00035,120]
[339366107,1727486139642,231.153552,0.00018904,2]
[339366108,1727486140084,231.153552,0.00025119,2]
[339366114,1727486501936,151.0,0.00025,2]
[339366117,1727486593415,3000.0,0.00021,2]
[339366118,1727486593981,2710.12501912,0.0002101,2]
[339366119,1727486594012,289.87498088,0.0002101,2]
[339366120,1727486594634,3000.0,0.0002102,2]
[339366121,1727486595102,3000.0,0.0002103,2]
[339366122,1727486595459,3000.0,0.0002104,2]
[339366123,1727486596039,3000.0,0.0002105,2]
[339366124,1727486596399,3000.0,0.0002106,2]
[339366125,1727486596773,3000.0,0.0002107,2]
[339366126,1727486597254,3000.0,0.0002108,2]
[339366127,1727486597584,3000.0,0.0002109,2]
[339366128,1727486597971,710.12501912,0.000211,2]
[339366129,1727486597997,2289.87498088,0.000211,2]
[339366130,1727486598375,3000.0,0.0002111,2]
[339366131,1727486598835,3000.0,0.0002112,2]
[339366132,1727486599178,5850.0,0.0002113,2]
[339366135,1727486693657,995.0,0.00025,120]
[339366137,1727486777286,236.27493,0.00018904,2]
[339366138,1727486777456,236.27493,0.00025119,2]
[339366140,1727486826152,-236.27493,0.00031334,2]
[339366141,1727486826176,-161.020426,0.00035135,2]
[339366142,1727486826199,-165.530935,0.00035596,2]
[339366143,1727486826222,-351.1,0.00035616,2]
[339366144,1727486826246,-300.0,0.00035828,2]
[339366145,1727486826270,-300.0,0.0003583,2]
[339366146,1727486826293,-4211.7198526,0.00035831,2]
[339366147,1727486826313,-2529.51276695,0.00036088,2]
[339366148,1727486826335,-288.3520518,0.00037328,2]
[339366150,1727486844284,-926.81526172,0.00037328,2]
[339366151,1727486846151,-129.62742178,0.00037328,2]
[339366152,1727486846173,-236.27493,0.00037549,2]
[339366153,1727486846205,-614.54070449,0.00037999,2]
[339366154,1727486847130,-727.55929551,0.00037999,2]
[339366155,1727486847152,-217.90853173,0.00038164,10]
[339366157,1727486850104,-227.90843109,0.00038164,10]
[339366163,1727486973291,166.1375,0.00035616,2]
[339366166,1727486983650,500.0,0.00025,2]
[339366169,1727487028313,778.6195,0.00030866,30]
[339366170,1727487029549,10000.0,0.00027,2]
[339366223,1727487032457,-2599.999999,0.00034506,120]
[339366225,1727487032467,-150.0,0.00034506,14]
[339366227,1727487032478,-288.34,0.00034506,14]
[339366229,1727487032488,-500.0,0.00038,2]
[339366231,1727487032499,-54.18303718,0.00038164,10]
[339366233,1727487032508,-640.82709789,0.00038454,120]
[339366242,1727487038507,-253.85575584,0.00038454,120]
[339366243,1727487038607,-760.55714627,0.00038454,120]
[339366244,1727487038625,-500.0,0.00038454,18]
[339366245,1727487038641,-264.69667362,0.00038454,21]
[339366246,1727487038653,-203.98956473,0.00038454,120]
[339366247,1727487038665,-1076.99,0.00038494,120]
[339366248,1727487038681,-500.0,0.00038494,120]
[339366249,1727487038696,-170.488,0.00038524,52]
[339366250,1727487038709,-500.0,0.00038565,15]
[339366251,1727487038722,-340.75799241,0.00038565,7]
[339366252,1727487038734,-500.0,0.00038565,15]
[339366253,1727487038745,-500.0,0.00038565,15]
[339366254,1727487038759,-500.0,0.00038565,15]
[339366255,1727487038770,-500.0,0.00038565,15]
[339366256,1727487038782,-500.0,0.00038565,15]
[339366257,1727487038794,-500.0,0.00038565,15]
[339366258,1727487038806,-500.0,0.00038565,15]
[339366259,1727487038817,-500.0,0.00038565,15]
[339366260,1727487038829,-500.0,0.00038565,15]
[339366261,1727487038841,-500.0,0.00038565,15]
[339366262,1727487038854,-500.0,0.00038565,15]
[339366263,1727487038866,-500.0,0.00038565,15]
[339366264,1727487038878,-500.0,0.00038565,15]
[339366265,1727487038892,-500.0,0.00038565,15]
[339366266,1727487038904,-500.0,0.00038565,15]
[339366267,1727487038917,-500.0,0.00038565,15]
[339366268,1727487038929,-500.0,0.00038565,15]
[339366269,1727487038941,-500.0,0.00038565,15]
[339366270,1727487038951,-500.0,0.00038565,15]
[339366271,1727487038962,-318.64809776,0.00038565,15]
[339366272,1727487038973,-500.0,0.00038565,15]
[339366273,1727487038984,-500.0,0.00038565,15]
[339366274,1727487038996,-5906.85659456,0.00038566,2]
[339366275,1727487039008,-1655.24,0.00038728,120]
[339366276,1727487039021,-173.00350831,0.00038728,18]
[339366277,1727487039033,-1076.99,0.00038768,120]
[339366278,1727487039045,-500.0,0.00038768,120]
[339366279,1727487039058,-200.59470372,0.000389,120]
[339366280,1727487039069,-1161.32527385,0.00038902,2]
[339366281,1727487039080,-152.79482226,0.00038904,28]
[339366282,1727487039091,-859.11709483,0.00038994,90]
[339366283,1727487039105,-640.88290517,0.00038994,90]
[339366284,1727487039116,-698.85,0.00038994,120]
[339366285,1727487039126,-2095.80152504,0.00039,120]
[339366290,1727487040434,-3573.42110864,0.00039,120]
[339366291,1727487040448,-332.38819351,0.00039,120]
[339366296,1727487044171,750.24849156,0.00027,2]
[339366297,1727487044196,1160.35150844,0.00027,2]
[339366306,1727487061816,557.56889156,0.00031772,60]
[339366307,1727487061845,2677.47393176,0.00031772,60]
[339366308,1727487132704,264.0,0.00025,7]
[339366309,1727487191761,200.0,0.000265,2]
[339366310,1727487193542,511.52328,0.00021,2]
[339366313,1727487379906,189.0,0.00027,6]
[339366314,1727487398859,486.0,0.00027,2]
[339366317,1727487792530,150.0,0.00021,2]
[339366318,1727487797552,266.22,0.00027,2]
[339366321,1727488033125,-164.0,0.0003,2]
[339366322,1727488033149,-253.307015,0.00034932,2]
[339366323,1727488033173,-320.229436,0.00035499,2]
[339366324,1727488033198,-309.0,0.00035615,2]
[339366325,1727488033220,-71.1170365,0.00035616,2]
[339366326,1727488040154,-428.8829635,0.00035616,2]
[339366327,1727488040176,-500.0,0.00035616,2]
[339366328,1727488040197,-500.0,0.00035616,2]
[339366329,1727488040218,-91.15525852,0.00035616,2]
[339366330,1727488040246,-408.84474148,0.00035616,2]
[339366331,1727488040267,-500.0,0.00035616,2]
[339366332,1727488040288,-195.12735652,0.00035616,2]
[339366333,1727488042098,-304.87264348,0.00035616,2]
[339366334,1727488042120,-268.16703376,0.00035616,2]
[339366335,1727488051102,-231.83296624,0.00035616,2]
[339366336,1727488051127,-500.0,0.00035616,2]
[339366337,1727488051152,-161.80672579,0.00035616,2]
[339366339,1727488116717,500.0,0.00026849,2]
[339366340,1727488117030,500.0,0.00026849,2]
[339366341,1727488117345,500.0,0.00026849,2]
[339366342,1727488117642,218.06726478,0.00026849,2]
[339366348,1727488164124,-168.0150828,0.00035071,2]
[339366349,1727488164147,-175.02582632,0.00035615,2]
[339366350,1727488167117,-759.68657218,0.00035615,2]
[339366351,1727488167141,-400.0,0.00035616,2]
[339366352,1727488167163,-275.831463,0.00035616,120]
[339366353,1727488167185,-283.7329884,0.00035659,2]
[339366354,1727488167205,-159.03448,0.00036,2]
[339366368,1727488232382,-99.29329912,0.00034507,14]
[339366369,1727488232394,-53.26669988,0.00034507,14]
[339366370,1727488232403,-774.94155671,0.00034507,120]
[339366388,1727488243518,-1246.72017249,0.00034507,120]
[339366397,1727488246550,-124.18372083,0.00034507,120]
[339366399,1727488339276,200.0,0.00035616,2]
[339366401,1727488393409,3000.0,0.00021,2]
[339366402,1727488393835,2871.76461434,0.0002101,2]
[339366403,1727488393863,128.23538566,0.0002101,2]
[339366404,1727488394204,3000.0,0.0002102,2]
[339366405,1727488394899,3000.0,0.0002103,2]
[339366406,1727488395220,3000.0,0.0002104,2]
[339366407,1727488395652,3000.0,0.0002105,2]
[339366408,1727488395944,3000.0,0.0002106,2]
[339366409,1727488396230,3000.0,0.0002107,2]
[339366410,1727488396531,3000.0,0.0002108,2]
[339366411,1727488396848,3000.0,0.0002109,2]
[339366412,1727488397280,871.76461434,0.000211,2]
[339366413,1727488397308,2128.23538566,0.000211,2]
[339366414,1727488397700,3000.0,0.0002111,2]
[339366415,1727488397984,3000.0,0.0002112,2]
[339366416,1727488399377,3000.0,0.0002113,2]
[339366417,1727488399656,3000.0,0.0002114,2]
[339366418,1727488399954,3000.0,0.0002115,2]
[339366419,1727488400270,3000.0,0.0002116,2]
[339366420,1727488400580,4871.76461434,0.0002117,2]
[339366421,1727488400605,675.38298066,0.0002117,2]
[339366453,1727488869175,3000.0,0.00024,2]
[339366454,1727488898138,3051.97,0.00024,2]
[339366455,1727488919586,18270.0,0.00024,2]
[339366495,1727488994208,2.64701934,0.00021,2]
[339366496,1727488994236,147.35298066,0.00021,2]
[339366503,1727489150139,-267.427522,0.00027566,2]
[339366504,1727489150161,-1730.0,0.00034507,14]
[339366505,1727489150182,-248.858031,0.00034932,2]
[339366506,1727489150208,-1663.496343,0.00035,30]
[339366508,1727489247116,-258.051548,0.00034932,2]
[339366509,1727489247143,-536.503657,0.00035,30]
[339366510,1727489247167,-161.199257,0.00035348,2]
[339366511,1727489247189,-230.6597806,0.00035396,2]
[339366512,1727489247212,-327.0352214,0.00035435,2]
[339366513,1727489247237,-492.684915,0.00035601,2]
[339366514,1727489247261,-176.12166047,0.00035616,2]
[339366515,1727489249136,-223.87833953,0.00035616,2]
[339366516,1727489249157,-300.0,0.00035674,2]
[339366517,1727489249179,-400.0,0.00035674,2]
[339366518,1727489249199,-2193.05502169,0.00035737,2]
[339366519,1727489251128,-1879.27913988,0.00035737,2]
[339366520,1727489251151,-250.0,0.00036186,2]
[339366521,1727489251173,-250.0,0.00036285,2]
[339366522,1727489251194,-492.684915,0.00036286,2]
[339366523,1727489251217,-250.0,0.00036384,2]
[339366524,1727489251238,-295.614,0.00036465,2]
[339366525,1727489251262,-250.0,0.00036484,2]
[339366526,1727489251285,-250.0,0.00036583,2]
[339366527,1727489251306,-250.0,0.00036682,2]
[339366528,1727489251328,-250.0,0.00036781,2]
[339366529,1727489251354,-161.0,0.0003684,120]
[339366530,1727489251387,-250.0,0.00036881,2]
[339366531,1727489251419,-252.3807937,0.00036959,2]
[339366532,1727489251447,-154.1044011,0.00036959,2]
[339366533,1727489251471,-153.3808602,0.00036959,2]
[339366534,1727489251500,-209.1919512,0.00036959,2]
[339366535,1727489251530,-492.684915,0.00036971,2]
[339366536,1727489251559,-250.0,0.0003698,2]
[339366537,1727489251585,-171.45,0.0003698,47]
[339366538,1727489251610,-153.0,0.00037068,2]
[339366539,1727489251636,-153.0,0.00037068,2]
[339366540,1727489251661,-209.1919512,0.00037068,2]
[339366541,1727489251686,-209.1919512,0.00037068,2]
[339366542,1727489251712,-153.0,0.00037068,2]
[339366543,1727489251738,-153.0,0.00037068,2]
[339366544,1727489251771,-209.1919512,0.00037068,2]
[339366545,1727489251796,-153.0,0.00037068,2]
[339366546,1727489251821,-250.0,0.00037079,2]
[339366547,1727489251844,-250.0,0.00037178,2]
[339366548,1727489251868,-250.0,0.00037278,2]
[339366549,1727489251892,-250.0,0.00037377,2]
[339366550,1727489251917,-250.0,0.00037476,2]
[339366551,1727489251943,-250.0,0.00037575,2]
[339366552,1727489251968,-250.0,0.00037674,2]
[339366553,1727489252001,-250.0,0.00037774,2]
[339366554,1727489252028,-250.0,0.00037873,2]
[339366555,1727489252053,-250.0,0.00037972,2]
[339366556,1727489252075,-534.0,0.00038,30]
[339366557,1727489252099,-250.0,0.00038071,2]
[339366558,1727489252123,-157.19906545,0.00038164,10]
[339366559,1727489252150,-210.0,0.00038224,2]
[339366560,1727489252181,-440.32703439,0.00038356,120]
[339366561,1727489252204,-153.59973814,0.00038356,120]
[339366562,1727489252233,-214.0565054,0.00038356,120]
[339366563,1727489252261,-500.0,0.00038516,15]
[339366564,1727489252289,-406.97471653,0.00038516,15]
[339366565,1727489252313,-500.0,0.00038516,15]
[339366566,1727489252335,-500.0,0.00038516,15]
[339366567,1727489252358,-500.0,0.00038516,15]
[339366568,1727489252384,-1539.52,0.00038516,120]
[339366569,1727489252413,-192.89537738,0.00038516,2]
[339366573,1727489346143,-203.0561925,0.0003561,2]
[339366574,1727489346166,-171.060006,0.00036014,2]
[339366575,1727489346188,-171.060006,0.00036484,2]
[339366576,1727489346210,-171.060006,0.00036953,2]
[339366585,1727489432566,-398.91189714,0.00034512,120]
[339366587,1727489432577,-151.0,0.00034512,14]
[339366589,1727489432587,-206.4742759,0.00034512,120]
[339366591,1727489432597,-171.060006,0.00037422,2]
[339366593,1727489432607,-171.060006,0.00037891,2]
[339366595,1727489432617,-153.19987204,0.00038356,21]
[339366597,1727489432627,-500.0,0.00038356,120]
[339366599,1727489432637,-993.09,0.00038356,120]
[339366601,1727489432647,-1357.49633328,0.0003842,2]
[339366603,1727489432656,-7470.27,0.00038509,3]
[339366606,1727489432667,-1613.43760964,0.00038509,3]
[339366616,1727489432757,-547.031611,0.00038509,3]
[339366649,1727489438688,-1999.71005865,0.00038509,3]
[339366651,1727489439343,-2065.04072071,0.00038509,3]
[339366652,1727489439354,-1475.38,0.00038515,120]
[339366653,1727489439364,-523.45523803,0.00038516,2]
[339366654,1727489439376,-319.83406098,0.00038517,120]
[339366655,1727489439387,-164.903657,0.00038517,120]
[339366656,1727489439396,-508.7525608,0.00038517,120]
[339366657,1727489439406,-376.62680366,0.00038517,120]
[339366658,1727489439417,-255.14281659,0.00038517,120]
[339366659,1727489439428,-500.0,0.00038517,120]
[339366660,1727489439437,-317.29242577,0.00038517,120]
[339366661,1727489439447,-500.0,0.00038517,120]
[339366662,1727489439457,-518.85394104,0.00038517,120]
[339366663,1727489439467,-507.08505825,0.00038517,120]
[339366664,1727489439476,-895.10891944,0.00038518,90]
[339366674,1727489440608,-604.89108056,0.00038518,90]
[339366675,1727489440617,-506.63557085,0.00038518,120]
[339366676,1727489440626,-421.38734223,0.00038518,15]
[339366677,1727489440638,-78.61265777,0.00038518,15]
[339366678,1727489440648,-303.59005031,0.00038518,15]
[339366679,1727489440659,-448.02381046,0.00038518,15]
[339366680,1727489440669,-370.85892224,0.00038518,15]
[339366681,1727489440679,-513.15440459,0.00038518,15]
[339366682,1727489440689,-500.0,0.00038518,15]
[339366683,1727489440701,-500.0,0.00038518,15]
[339366684,1727489440713,-267.44163517,0.00038518,15]
[339366685,1727489440724,-1244.27129582,0.00038519,2]
[339366686,1727489440733,-60240.10784148,0.00038519,7]
[339366698,1727489443869,-434.42021067,0.00038509,3]
[339366699,1727489443882,-2202.64099101,0.00038509,3]
[339366700,1727489443895,-2206.44879832,0.00038509,3]
[339366701,1727489443905,-2689.05120168,0.00038519,7]
[339366709,1727489446781,-531.29819129,0.00038517,120]
[339366710,1727489446790,-3883.13341005,0.00038519,7]
[339366711,1727489446801,-31482.60282055,0.00038519,7]
[339366715,1727489523789,200.0,0.00035616,2]
[339366728,1727490147253,600.0,0.00020036,3]
[339366729,1727490147874,600.0,0.00018504,2]
[339366730,1727490148581,600.0,0.00018721,2]
[339366731,1727490149227,600.0,0.00018721,2]
[339366732,1727490149847,600.0,0.00018836,2]
[339366733,1727490150522,600.0,0.00020188,3]
[339366734,1727490151270,600.0,0.00018991,2]
[339366735,1727490151910,600.0,0.00020036,3]
[339366736,1727490152519,600.0,0.00020188,3]
[339366737,1727490153137,600.0,0.00020217,3]
[339366738,1727490153807,600.0,0.00018876,2]
[339366739,1727490154887,600.0,0.0001995,3]
[339366740,1727490156024,600.0,0.00018119,2]
[339366741,1727490156575,600.0,0.00020036,3]
[339366742,1727490157194,600.0,0.00018781,2]
[339366743,1727490157828,600.0,0.00018721,2]
[339366744,1727490158446,600.0,0.00018504,2]
[339366745,1727490159056,600.0,0.00019,2]
[339366746,1727490159657,600.0,0.00020036,3]
[339366747,1727490160368,600.0,0.00019295,2]
[339366748,1727490161053,600.0,0.00018504,2]
[339366749,1727490161616,600.0,0.00020188,3]
[339366750,1727490162209,600.0,0.00019,2]
[339366751,1727490162880,600.0,0.0001995,3]
[339366752,1727490163489,600.0,0.0001995,3]
[339366753,1727490164085,600.0,0.00019,2]
[339366754,1727490164704,600.0,0.00018876,2]
[339366755,1727490165286,600.0,0.00018876,2]
[339366765,1727490436160,-185.9041024,0.00033277,30]
[339366766,1727490436183,-261.581706,0.00034932,2]
[339366767,1727490436204,-142.77637763,0.00035,120]
[339366768,1727490437191,-9.22362237,0.00035,120]
[339366769,1727490437213,-390.0,0.00035616,2]
[339366770,1727490437237,-1976.94881969,0.00038,10]
[339366771,1727490440115,-43541.05535328,0.00038,10]
[339366772,1727490453125,-854.43665533,0.00038,10]
[339366773,1727490458531,1632.27774733,0.000188,2]
[339366777,1727490550304,-2519.93078981,0.00031,120]
[339366778,1727490602384,343.04090912,0.00032141,60]
[339366779,1727490602406,214.52798244,0.00032141,60]
[339366848,1727490638950,-2500.0,0.00034512,120]
[339366850,1727490638961,-836.80022289,0.00034512,32]
[339366852,1727490638971,-1037.57204528,0.00034512,60]
[339366854,1727490638981,-1843.11056921,0.00038,10]
[339366856,1727490638990,-500.0,0.00038164,10]
[339366857,1727490639000,-1441.8,0.00038356,120]
[339366859,1727490639011,-207.22715853,0.00038507,2]
[339366860,1727490639022,-3103.32,0.00038507,3]
[339366861,1727490639034,-5357.27,0.00038507,3]
[339366862,1727490639043,-4464.39,0.00038507,3]
[339366863,1727490639052,-181.73,0.00038509,120]
[339366864,1727490639063,-500.0,0.00038516,120]
[339366865,1727490639073,-951.71,0.00038516,120]
[339366866,1727490639084,-500.0,0.00038516,15]
[339366867,1727490639093,-359.20808321,0.00038516,15]
[339366868,1727490639102,-212.51303522,0.00038516,15]
[339366869,1727490639111,-259.60124557,0.00038516,15]
[339366870,1727490639123,-500.0,0.00038516,15]
[339366871,1727490639134,-195.4833935,0.00038516,15]
[339366872,1727490639143,-500.0,0.00038516,15]
[339366873,1727490639153,-622.13564791,0.00038517,2]
[339366874,1727490639162,-169.37663817,0.00038517,60]
[339366875,1727490639171,-500.0,0.00038517,2]
[339366876,1727490639181,-501.65186952,0.00038517,120]
[339366877,1727490639190,-500.0,0.00038517,30]
[339366878,1727490639199,-500.0,0.00038517,120]
[339366879,1727490639210,-3819.22,0.00038517,120]
[339366880,1727490639219,-968.06569099,0.00038517,120]
[339366881,1727490639251,-318.15430901,0.00038517,120]
[339366882,1727490639264,-1037.99,0.00038517,120]
[339366883,1727490639274,-724.71,0.00038517,120]
[339366884,1727490639283,-237.10994043,0.00038517,120]
[339366885,1727490639312,196.666666,0.00035616,2]
[339366938,1727490703377,161.199257,0.00035607,2]